fUSD/lending_fUSD_20260129
["ID","MTS","AMOUNT","RATE_DAILY","PERIOD"]
[403967822,1769699352411,-558.50045609,0.00014057,2]
[403967823,1769699352436,-195.0,0.00014057,2]
[403967824,1769699352463,-500.0,0.00014058,2]
[403967825,1769699352487,-13393.27636941,0.00014058,2]
[403967826,1769699365570,-360.0,0.00014058,2]
[403967828,1769699390711,6112.88105871,0.00021,30]
[403967835,1769699428777,32.90832291,0.00011233,2]
[403967836,1769699428802,4309.74167709,0.00011233,2]
[403967847,1769699432519,-431.93,0.00014058,2]
[403967849,1769699432532,-329.01,0.00014058,2]
[403967851,1769699432545,-173.71612292,0.00014058,2]
[403967852,1769699432555,-853.4006632,0.00014058,2]
[403967853,1769699432567,-781.2,0.00014058,2]
[403967854,1769699432583,-70.41746249,0.00014058,2]
[403967855,1769699432593,-683.12523538,0.00014058,2]
[403967856,1769699432630,-14434.24957933,0.00014058,2]
[403967857,1769699432641,-500.0,0.00014058,2]
[403967858,1769699432652,-250.0,0.00014058,2]
[403967859,1769699432663,-343.2206,0.00014058,2]
[403967860,1769699432673,-405.61,0.000141,2]
[403967861,1769699432683,-223.87401932,0.00014146,2]
[403967862,1769699432695,-500.0,0.00014147,2]
[403967863,1769699432705,-151.0,0.00014153,2]
[403967864,1769699432716,-150.0,0.00014154,2]
[403967865,1769699432726,-1200.0,0.00014154,2]
[403967866,1769699432737,-208.75634049,0.00014155,2]
[403967867,1769699432747,-500.0,0.00014155,2]
[403967868,1769699432761,-500.0,0.00014155,2]
[403967869,1769699432772,-502.04617856,0.00014155,2]
[403967870,1769699432782,-500.0,0.00014155,2]
[403967871,1769699432793,-500.0,0.00014155,2]
[403967872,1769699432803,-486.31793053,0.00014155,2]
[403967873,1769699432813,-1618.31,0.00014155,2]
[403967874,1769699432823,-17878.87756031,0.00014156,2]
[403967875,1769699432836,-24054.38501751,0.00014156,2]
[403967876,1769699432858,-2345.16335082,0.00014156,2]
[403967877,1769699432870,-3753.07156661,0.00014156,2]
[403967878,1769699432882,-7477.9414305,0.00014156,2]
[403967879,1769699432895,-1487.95536,0.00014156,2]
[403967880,1769699432908,-5879.39187,0.00014156,2]
[403967881,1769699432920,-510.0,0.00014156,2]
[403967882,1769699432932,-1650.0,0.00014156,2]
[403967897,1769699441018,-9.0,0.00014156,2]
[403967898,1769699441033,-21875.0,0.00014156,2]
[403967928,1769699441305,-740.98031079,0.00014156,2]
[403967930,1769699441319,-19149.37087493,0.00014156,2]
[403967932,1769699441334,-2293188.86265853,0.00014156,2]
[403967934,1769699441346,-1016.46476528,0.00014158,2]
[403967936,1769699441358,-4072.757,0.00014158,2]
[403967938,1769699441369,-299.227,0.00014158,2]
[403967940,1769699441380,-150.0,0.00014168,2]
[403967943,1769699441391,-500.0,0.00014168,2]
[403967945,1769699441402,-150.0,0.00014168,2]
[403967947,1769699441413,-500.0,0.00014168,2]
[403967949,1769699441425,-165.72537453,0.00014168,2]
[403967951,1769699441437,-150.0,0.00014168,2]
[403967953,1769699441449,-500.0,0.00014168,2]
[403967955,1769699441461,-500.0,0.00014168,2]
[403967957,1769699441472,-500.0,0.00014168,2]
[403967959,1769699441483,-500.0,0.00014168,2]
[403967961,1769699441495,-500.0,0.00014168,2]
[403967963,1769699441506,-150.0,0.00014168,2]
[403967965,1769699441520,-150.0,0.00014168,2]
[403967967,1769699441532,-150.0,0.00014185,2]
[403967969,1769699441543,-150.0,0.00014185,2]
[403967971,1769699441554,-500.0,0.00014185,2]
[403967973,1769699441566,-500.0,0.00014185,2]
[403967975,1769699441577,-600.0,0.00014185,2]
[403967977,1769699441589,-150.0,0.00014185,2]
[403967979,1769699441600,-500.0,0.00014185,2]
[403967981,1769699441611,-150.0,0.00014185,2]
[403967983,1769699441622,-500.0,0.00014185,2]
[403967985,1769699441633,-150.0,0.00014223,2]
[403967987,1769699441644,-500.0,0.00014223,2]
[403967989,1769699441656,-150.0,0.00014223,2]
[403967991,1769699441668,-500.0,0.00014223,2]
[403967993,1769699441679,-500.0,0.00014223,2]
[403967995,1769699441691,-500.0,0.00014223,2]
[403967997,1769699441703,-500.0,0.00014223,2]
[403967999,1769699441714,-500.0,0.00014223,2]
[403968001,1769699441725,-500.0,0.00014223,2]
[403968003,1769699441737,-150.0,0.0001424,2]
[403968005,1769699441748,-150.0,0.0001424,2]
[403968007,1769699441762,-500.0,0.0001424,2]
[403968009,1769699441773,-500.0,0.0001424,2]
[403968011,1769699441784,-150.0,0.0001424,2]
[403968013,1769699441796,-600.0,0.0001424,2]
[403968015,1769699441807,-510.0,0.0001424,2]
[403968018,1769699441819,-150.0,0.0001424,2]
[403968020,1769699441831,-500.0,0.0001424,2]
[403968022,1769699441844,-500.0,0.00014255,2]
[403968024,1769699441855,-455.72018722,0.00014255,2]
[403968026,1769699441868,-500.0,0.00014255,2]
[403968028,1769699441879,-500.0,0.00014255,2]
[403968030,1769699441890,-500.0,0.00014255,2]
[403968032,1769699441901,-500.0,0.00014255,2]
[403968034,1769699441912,-500.0,0.00014255,2]
[403968036,1769699441923,-500.0,0.00014255,2]
[403968038,1769699441934,-500.0,0.00014255,2]
[403968040,1769699441945,-500.0,0.00014255,2]
[403968042,1769699441956,-500.0,0.00014255,2]
[403968044,1769699441967,-500.0,0.00014255,2]
[403968046,1769699441977,-500.0,0.00014255,2]
[403968048,1769699441988,-500.0,0.00014255,2]
[403968050,1769699442000,-500.0,0.00014255,2]
[403968052,1769699442014,-597.54129764,0.00014255,2]
[403968054,1769699442025,-980.8454807,0.0001426,2]
[403968056,1769699442036,-200.0,0.00014278,2]
[403968058,1769699442047,-500.0,0.00014278,2]
[403968060,1769699442058,-500.0,0.00014278,2]
[403968062,1769699442069,-150.0,0.00014278,2]
[403968064,1769699442080,-500.0,0.00014278,2]
[403968066,1769699442090,-500.0,0.00014278,2]
[403968068,1769699442100,-500.0,0.00014278,2]
[403968070,1769699442111,-500.0,0.00014278,2]
[403968072,1769699442121,-500.0,0.00014278,2]
[403968074,1769699442132,-151.0,0.00014292,2]
[403968076,1769699442143,-250.0,0.00014295,2]
[403968078,1769699442153,-150.0,0.00014295,2]
[403968081,1769699442164,-500.0,0.00014295,2]
[403968082,1769699442174,-326.88485057,0.00014295,2]
[403968085,1769699442185,-150.0,0.00014295,2]
[403968087,1769699442195,-600.0,0.00014295,2]
[403968089,1769699442206,-150.0,0.00014295,2]
[403968091,1769699442217,-500.0,0.00014295,2]
[403968093,1769699442227,-500.0,0.00014332,2]
[403968095,1769699442239,-500.0,0.00014332,2]
[403968097,1769699442251,-150.0,0.00014332,2]
[403968099,1769699442264,-500.0,0.00014332,2]
[403968101,1769699442275,-500.0,0.00014332,2]
[403968103,1769699442286,-500.0,0.00014332,2]
[403968105,1769699442299,-500.0,0.00014332,2]
[403968107,1769699442310,-500.0,0.00014332,2]
[403968109,1769699442320,-150.0,0.00014349,2]
[403968111,1769699442331,-500.0,0.00014349,2]
[403968113,1769699442344,-150.0,0.00014349,2]
[403968115,1769699442355,-600.0,0.00014349,2]
[403968117,1769699442366,-500.0,0.00014349,2]
[403968120,1769699442377,-33270.6958,0.0001436,2]
[403968122,1769699442388,-1000.0,0.0001436,2]
[403968123,1769699442398,-150.0,0.00014385,2]
[403968124,1769699442409,-150.0,0.00014385,2]
[403968125,1769699442419,-1478.55,0.00014385,2]
[403968126,1769699442429,-154.30496973,0.00014385,2]
[403968127,1769699442440,-500.0,0.00014385,2]
[403968128,1769699442450,-150.0,0.00014385,2]
[403968129,1769699442460,-500.0,0.00014385,2]
[403968130,1769699442471,-500.0,0.00014385,2]
[403968131,1769699442482,-500.0,0.00014385,2]
[403968132,1769699442492,-259.23494568,0.00014385,2]
[403968133,1769699442503,-500.0,0.00014385,2]
[403968134,1769699442515,-500.0,0.00014385,2]
[403968135,1769699442525,-150.0,0.00014387,2]
[403968136,1769699442535,-321.64096607,0.00014387,2]
[403968137,1769699442546,-500.0,0.00014387,2]
[403968138,1769699442556,-500.0,0.00014387,2]
[403968139,1769699442567,-150.0,0.00014404,2]
[403968141,1769699442577,-150.0,0.00014404,2]
[403968142,1769699442588,-150.0,0.00014404,2]
[403968145,1769699442599,-600.0,0.00014404,2]
[403968147,1769699442609,-500.0,0.00014404,2]
[403968149,1769699442620,-209.0686946,0.0001444,2]
[403968151,1769699442630,-150.0,0.0001444,2]
[403968153,1769699442641,-500.0,0.0001444,2]
[403968155,1769699442651,-150.0,0.0001444,2]
[403968157,1769699442662,-500.0,0.0001444,2]
[403968159,1769699442674,-612.28691329,0.0001444,2]
[403968162,1769699442684,-500.0,0.0001444,2]
[403968164,1769699442695,-500.0,0.0001444,2]
[403968166,1769699442706,-500.0,0.0001444,2]
[403968168,1769699442717,-176.0,0.00014442,2]
[403968170,1769699442728,-500.0,0.00014442,2]
[403968172,1769699442740,-500.0,0.00014442,2]
[403968175,1769699442751,-203.50697383,0.00014459,2]
[403968177,1769699442763,-250.0,0.00014459,2]
[403968179,1769699442774,-600.0,0.00014459,2]
[403968181,1769699442785,-500.0,0.00014459,2]
[403968183,1769699442795,-500.0,0.00014459,2]
[403968185,1769699442806,-500.0,0.00014459,2]
[403968187,1769699442817,-500.0,0.00014459,2]
[403968189,1769699442828,-500.0,0.00014459,2]
[403968192,1769699442839,-500.0,0.00014459,2]
[403968194,1769699442849,-500.0,0.00014459,2]
[403968196,1769699442859,-500.0,0.00014459,2]
[403968198,1769699442870,-500.0,0.00014459,2]
[403968200,1769699442881,-500.0,0.00014459,2]
[403968202,1769699442893,-500.0,0.00014459,2]
[403968204,1769699442905,-1500.0,0.00014469,2]
[403968206,1769699442916,-14687.93249224,0.00014485,2]
[403968208,1769699442927,-15117.37481469,0.00014485,2]
[403968211,1769699442939,-210.58495548,0.00014495,2]
[403968213,1769699442950,-360.0,0.00014495,2]
[403968215,1769699442962,-500.0,0.00014495,2]
[403968217,1769699442973,-150.0,0.00014495,2]
[403968219,1769699442983,-500.0,0.00014495,2]
[403968221,1769699442994,-150.0,0.00014495,2]
[403968224,1769699443005,-500.0,0.00014497,2]
[403968227,1769699443020,-500.0,0.00014497,2]
[403968230,1769699443032,-46157.33628105,0.000145,2]
[403968234,1769699443042,-600.0,0.00014514,2]
[403968237,1769699443054,-500.0,0.00014514,2]
[403968242,1769699443066,-500.0,0.00014549,2]
[403968246,1769699443077,-364.0,0.00014549,2]
[403968250,1769699443093,-290.30598307,0.00014552,2]
[403968253,1769699443105,-500.0,0.00014552,2]
[403968255,1769699443117,-600.0,0.00014569,2]
[403968257,1769699443129,-500.0,0.00014569,2]
[403968260,1769699443140,-500.0,0.00014604,2]
[403968262,1769699443152,-500.0,0.00014606,2]
[403968264,1769699443165,-600.0,0.00014623,2]
[403968267,1769699443177,-500.0,0.00014623,2]
[403968269,1769699443190,-500.0,0.00014659,2]
[403968271,1769699443201,-500.0,0.00014659,2]
[403968273,1769699443213,-500.0,0.00014659,2]
[403968275,1769699443224,-270.35149328,0.00014659,2]
[403968278,1769699443236,-500.0,0.00014659,2]
[403968280,1769699443250,-500.0,0.00014659,2]
[403968282,1769699443267,-500.0,0.00014659,2]
[403968284,1769699443279,-500.0,0.00014659,2]
[403968287,1769699443291,-500.0,0.00014659,2]
[403968407,1769699443303,-500.0,0.00014659,2]
[403968411,1769699444428,-500.0,0.00014659,2]
[403968415,1769699444451,-500.0,0.00014659,2]
[403968419,1769699444484,-500.0,0.00014659,2]
[403968422,1769699444503,-500.0,0.00014659,2]
[403968424,1769699444517,-500.0,0.00014659,2]
[403968426,1769699444527,-500.0,0.00014659,2]
[403968428,1769699444537,-500.0,0.00014659,2]
[403968430,1769699444546,-500.0,0.00014659,2]
[403968431,1769699444555,-500.0,0.00014659,2]
[403968434,1769699444567,-500.0,0.00014659,2]
[403968436,1769699444577,-500.0,0.00014659,2]
[403968438,1769699444586,-500.0,0.00014659,2]
[403968440,1769699444596,-500.0,0.00014659,2]
[403968442,1769699444606,-500.0,0.00014659,2]
[403968444,1769699444615,-500.0,0.00014659,2]
[403968446,1769699444624,-600.43584466,0.00014659,2]
[403968447,1769699444633,-500.0,0.00014659,2]
[403968449,1769699444643,-500.0,0.00014659,2]
[403968451,1769699444652,-500.0,0.00014659,2]
[403968453,1769699444661,-500.0,0.00014659,2]
[403968455,1769699444671,-500.0,0.00014659,2]
[403968457,1769699444681,-637.29992174,0.00014659,2]
[403968459,1769699444690,-500.0,0.00014659,2]
[403968461,1769699444699,-294.9156602,0.00014659,3]
[403968463,1769699444713,-500.0,0.00014659,2]
[403968466,1769699444723,-500.0,0.00014659,2]
[403968468,1769699444733,-500.0,0.00014659,2]
[403968469,1769699444743,-500.0,0.00014659,2]
[403968471,1769699444753,-500.0,0.00014659,2]
[403968474,1769699444766,-476.54174458,0.00014659,2]
[403968476,1769699444779,-1478.55,0.00014659,2]
[403968478,1769699444788,-500.0,0.00014659,2]
[403968480,1769699444798,-500.0,0.00014659,2]
[403968482,1769699444807,-500.0,0.00014659,2]
[403968484,1769699444817,-500.0,0.00014659,2]
[403968486,1769699444826,-500.0,0.00014659,2]
[403968488,1769699444836,-500.0,0.00014659,2]
[403968490,1769699444845,-500.0,0.00014659,2]
[403968492,1769699444854,-500.0,0.00014659,2]
[403968494,1769699444864,-500.0,0.00014659,2]
[403968496,1769699444875,-500.0,0.00014659,2]
[403968498,1769699444885,-500.0,0.00014661,2]
[403968500,1769699444894,-238.89,0.00014669,2]
[403968502,1769699444903,-600.0,0.00014678,2]
[403968504,1769699444913,-500.0,0.00014678,2]
[403968506,1769699444924,-500.0,0.00014714,2]
[403968508,1769699444934,-500.0,0.00014716,2]
[403968510,1769699444943,-600.0,0.00014733,2]
[403968512,1769699444951,-267.97951461,0.00014733,2]
[403968514,1769699444960,-500.0,0.00014769,2]
[403968516,1769699444970,-500.0,0.00014771,2]
[403968518,1769699444978,-600.0,0.00014788,2]
[403968520,1769699444988,-500.0,0.00014823,2]
[403968522,1769699444997,-247.11434116,0.00014826,2]
[403968524,1769699445007,-150.0,0.00014826,2]
[403968526,1769699445019,-1705.01812569,0.00014826,2]
[403968528,1769699445028,-600.0,0.00014843,2]
[403968530,1769699445037,-980.84548067,0.00014867,2]
[403968532,1769699445047,-500.0,0.00014878,2]
[403968534,1769699445056,-150.0,0.00014881,2]
[403968536,1769699445066,-600.0,0.00014897,2]
[403968538,1769699445076,-3501.98783854,0.00014906,2]
[403968540,1769699445085,-14687.93249224,0.00014912,2]
[403968542,1769699445094,-15117.37481469,0.00014912,2]
[403968544,1769699445104,-273.99894081,0.00014933,2]
[403968546,1769699445113,-1478.55,0.00014933,2]
[403968548,1769699445122,-155.08275529,0.00014936,2]
[403968550,1769699445131,-600.0,0.00014952,2]
[403968552,1769699445140,-600.0,0.00015007,2]
[403968554,1769699445149,-160.46,0.00015058,2]
[403968556,1769699445158,-600.0,0.00015062,2]
[403968558,1769699445170,-1016.46476525,0.00015094,2]
[403968560,1769699445179,-600.0,0.00015117,2]
[403968562,1769699445188,-600.0,0.00015171,2]
[403968564,1769699445197,-385.92736429,0.00015176,2]
[403968566,1769699445207,-5000.0,0.00015176,2]
[403968568,1769699445216,-150.17343473,0.00015176,2]
[403968570,1769699445225,-1260.36,0.00015191,2]
[403968572,1769699445235,-1478.55,0.00015207,2]
[403968574,1769699445244,-600.0,0.00015226,2]
[403968576,1769699445258,-255.0,0.00015272,2]
[403968578,1769699445268,-600.0,0.00015281,2]
[403968580,1769699445278,-600.0,0.00015336,2]
[403968582,1769699445287,-14687.93249224,0.00015339,2]
[403968584,1769699445298,-15117.37481469,0.00015339,2]
[403968586,1769699445307,-600.0,0.0001539,2]
[403968588,1769699445316,-615.90600131,0.00015445,2]
[403968590,1769699445327,-195.0,0.00015462,2]
[403968592,1769699445336,-300.0,0.00015462,2]
[403968594,1769699445345,-600.0,0.00015463,2]
[403968596,1769699445356,-195.0,0.00015463,2]
[403968598,1769699445365,-312.04846329,0.00015463,2]
[403968600,1769699445374,-600.0,0.00015463,2]
[403968602,1769699445384,-195.0,0.00015463,2]
[403968604,1769699445393,-300.0,0.00015463,2]
[403968606,1769699445402,-1688.69986671,0.00015463,2]
[403968608,1769699445411,-500.0,0.00015463,2]
[403968610,1769699445421,-250.0,0.00015463,2]
[403968612,1769699445430,-250.0,0.00015464,2]
[403968614,1769699445439,-500.0,0.00015464,2]
[403968616,1769699445449,-980.84548067,0.00015473,2]
[403968618,1769699445459,-1478.55,0.00015481,2]
[403968620,1769699445471,-500.0,0.00015526,2]
[403968622,1769699445482,-1680.0,0.00015569,2]
[403968624,1769699445491,-1705.01812569,0.00015595,2]
[403968626,1769699445501,-1478.55,0.00015755,2]
[403968628,1769699445512,-14687.93249224,0.00015766,2]
[403968630,1769699445522,-15117.37481469,0.00015766,2]
[403968632,1769699445531,-275.92,0.000159,2]
[403968634,1769699445540,-1000.0,0.00015918,2]
[403968636,1769699445550,-500.0,0.00015973,2]
[403968638,1769699445560,-500.0,0.00015973,2]
[403968640,1769699445569,-500.37082769,0.00015973,2]
[403968642,1769699445579,-449.67214595,0.00015973,2]
[403968644,1769699445588,-506.79391477,0.00015973,2]
[403968646,1769699445597,-500.0,0.00015973,2]
[403968648,1769699445606,-501.77083236,0.00015973,2]
[403968650,1769699445615,-500.0,0.00015973,2]
[403968652,1769699445624,-500.0,0.00015973,2]
[403968654,1769699445633,-500.0,0.00015973,2]
[403968656,1769699445643,-500.0,0.00015973,2]
[403968658,1769699445652,-500.0,0.00015973,2]
[403968660,1769699445662,-500.0,0.00015973,2]
[403968662,1769699445672,-500.0,0.00015973,2]
[403968664,1769699445682,-500.0,0.00015973,2]
[403968666,1769699445692,-500.0,0.00015973,2]
[403968667,1769699445703,-500.0,0.00015973,2]
[403968668,1769699445714,-2114.47,0.00015981,2]
[403968669,1769699445725,-150.0,0.00016,2]
[403968670,1769699445735,-1016.46476525,0.00016029,2]
[403968671,1769699445745,-1478.55,0.00016029,2]
[403968672,1769699445756,-500.0,0.00016055,2]
[403968673,1769699445769,-241.35,0.00016058,7]
[403968674,1769699445780,-2743.41,0.00016062,2]
[403968675,1769699445791,-980.84548067,0.0001608,2]
[403968676,1769699445801,-165.49289447,0.000161,2]
[403968678,1769699445812,-9999.99,0.00016116,2]
[403968679,1769699445822,-238.89,0.00016123,2]
[403968681,1769699445832,-500.0,0.00016165,2]
[403968683,1769699445841,-150.0,0.00016165,2]
[403968685,1769699445851,-14687.93249224,0.00016192,2]
[403968687,1769699445860,-15117.37481469,0.00016192,2]
[403968689,1769699445870,-500.0,0.0001622,2]
[403968691,1769699445879,-3079.1987773,0.00016223,2]
[403968693,1769699445889,-8126.05429097,0.00016223,2]
[403968695,1769699445899,-500.0,0.00016275,2]
[403968697,1769699445909,-10000.0,0.000163,2]
[403968699,1769699445919,-1478.55,0.00016303,2]
[403968701,1769699445928,-500.0,0.00016329,2]
[403968703,1769699445938,-1705.01812569,0.00016363,2]
[403968705,1769699445948,-500.0,0.00016384,2]
[403968707,1769699445957,-9027.0,0.00016401,2]
[403968710,1769699445978,-500.0,0.00016437,2]
[403968712,1769699445988,-500.0,0.00016437,2]
[403968714,1769699445998,-500.0,0.00016437,2]
[403968716,1769699446008,-500.0,0.00016437,2]
[403968718,1769699446026,-500.0,0.00016438,2]
[403968720,1769699446036,-477.5181344,0.00016438,2]
[403968723,1769699446046,-1202.85089938,0.00016438,2]
[403968726,1769699446056,-1202.85089938,0.00016438,2]
[403968729,1769699446066,-1202.85089938,0.00016438,2]
[403968732,1769699446075,-1202.85089938,0.00016438,2]
[403968735,1769699446085,-1202.85089938,0.00016438,2]
[403968738,1769699446095,-1202.85089938,0.00016438,2]
[403968741,1769699446104,-1202.85089938,0.00016438,2]
[403968744,1769699446114,-1202.85089938,0.00016438,2]
[403968747,1769699446123,-1202.85089938,0.00016438,2]
[403968750,1769699446133,-1202.85089938,0.00016438,2]
[403968753,1769699446142,-1202.85089938,0.00016438,2]
[403968755,1769699446152,-1202.85089938,0.00016438,2]
[403968757,1769699446161,-1202.85089938,0.00016438,2]
[403968759,1769699446171,-1202.85089938,0.00016438,2]
[403968761,1769699446181,-1202.85089938,0.00016438,2]
[403968763,1769699446191,-1202.85089938,0.00016438,2]
[403968766,1769699446201,-1202.85089938,0.00016438,2]
[403968768,1769699446211,-1202.85089938,0.00016438,2]
[403968770,1769699446220,-1202.85089938,0.00016438,2]
[403968772,1769699446230,-1202.85089938,0.00016438,2]
[403968775,1769699446239,-1202.85089938,0.00016438,2]
[403968777,1769699446249,-1202.85089938,0.00016438,2]
[403968779,1769699446270,-1202.85089938,0.00016438,2]
[403968781,1769699446280,-1202.85089938,0.00016438,2]
[403968783,1769699446291,-1202.85089938,0.00016438,2]
[403968785,1769699446301,-1202.85089938,0.00016438,2]
[403968787,1769699446311,-1202.85089938,0.00016438,2]
[403968789,1769699446321,-1202.85089938,0.00016438,2]
[403968791,1769699446331,-1202.85089938,0.00016438,2]
[403968794,1769699446343,-1202.85089938,0.00016438,2]
[403968796,1769699446354,-1202.85089938,0.00016438,2]
[403968798,1769699446365,-1202.85089938,0.00016438,2]
[403968800,1769699446376,-1202.85089938,0.00016438,2]
[403968802,1769699446386,-1202.85089938,0.00016438,2]
[403968804,1769699446398,-1202.85089938,0.00016438,2]
[403968806,1769699446409,-1202.85089938,0.00016438,2]
[403968808,1769699446418,-1202.85089938,0.00016438,2]
[403968810,1769699446428,-1202.85089938,0.00016438,2]
[403968812,1769699446438,-1202.85089938,0.00016438,2]
[403968814,1769699446448,-1202.85089938,0.00016438,2]
[403968816,1769699446457,-1202.85089938,0.00016438,2]
[403968818,1769699446467,-1202.85089938,0.00016438,2]
[403968820,1769699446476,-1202.85089938,0.00016438,2]
[403968822,1769699446486,-1202.85089938,0.00016438,2]
[403968824,1769699446495,-1202.85089938,0.00016438,2]
[403968826,1769699446505,-1202.85089938,0.00016438,2]
[403968828,1769699446519,-1202.85089938,0.00016438,2]
[403968830,1769699446529,-1202.85089938,0.00016438,2]
[403968832,1769699446539,-1202.85089938,0.00016438,2]
[403968834,1769699446549,-1202.85089938,0.00016438,2]
[403968836,1769699446560,-1202.85089938,0.00016438,2]
[403968838,1769699446570,-1202.85089938,0.00016438,2]
[403968840,1769699446582,-4082.70632581,0.00016438,2]
[403968842,1769699446592,-4082.70632581,0.00016438,2]
[403968844,1769699446602,-4082.70632581,0.00016438,2]
[403968846,1769699446611,-4082.70632581,0.00016438,2]
[403968848,1769699446621,-4082.70632581,0.00016438,2]
[403968850,1769699446630,-4082.70632581,0.00016438,2]
[403968852,1769699446640,-4082.70632581,0.00016438,2]
[403968854,1769699446649,-4082.70632581,0.00016438,2]
[403968856,1769699446659,-4082.70632581,0.00016438,2]
[403968859,1769699446669,-4082.70632581,0.00016438,2]
[403968862,1769699446678,-4082.70632581,0.00016438,2]
[403968864,1769699446688,-4082.70632581,0.00016438,2]
[403968867,1769699446698,-4082.70632581,0.00016438,2]
[403968870,1769699446707,-4082.70632581,0.00016438,2]
[403968873,1769699446717,-4082.70632581,0.00016438,2]
[403968876,1769699446727,-4082.70632581,0.00016438,2]
[403968879,1769699446736,-4082.70632581,0.00016438,2]
[403968881,1769699446746,-4082.70632581,0.00016438,2]
[403968884,1769699446756,-4082.70632581,0.00016438,2]
[403968887,1769699446768,-4082.70632581,0.00016438,2]
[403968889,1769699446777,-4082.70632581,0.00016438,2]
[403968891,1769699446786,-4082.70632581,0.00016438,2]
[403968893,1769699446795,-4082.70632581,0.00016438,2]
[403968895,1769699446805,-4082.70632581,0.00016438,2]
[403968898,1769699446815,-4082.70632581,0.00016438,2]
[403968900,1769699446825,-4082.70632581,0.00016438,2]
[403968902,1769699446834,-4082.70632581,0.00016438,2]
[403968904,1769699446843,-4082.70632581,0.00016438,2]
[403968906,1769699446852,-4082.70632581,0.00016438,2]
[403968908,1769699446861,-4082.70632579,0.00016438,2]
[403968910,1769699446870,-4082.70632579,0.00016438,2]
[403968912,1769699446880,-4082.70632579,0.00016438,2]
[403968914,1769699446889,-4082.70632579,0.00016438,2]
[403968916,1769699446898,-4082.70632579,0.00016438,2]
[403968918,1769699446908,-4082.70632579,0.00016438,2]
[403968920,1769699446917,-4082.70632579,0.00016438,2]
[403968922,1769699446926,-4082.70632579,0.00016438,2]
[403968924,1769699446934,-4082.70632579,0.00016438,2]
[403968926,1769699446944,-227.11,0.00016438,2]
[403968928,1769699446953,-800.0,0.00016438,2]
[403968930,1769699446962,-500.0,0.00016439,2]
[403968932,1769699446972,-433.0,0.00016475,2]
[403968934,1769699446982,-460.01543511,0.00016494,2]
[403968936,1769699446991,-1000.0,0.00016515,2]
[403968938,1769699447001,-1000.0,0.00016521,2]
[403968940,1769699447011,-1000.0,0.00016521,2]
[403968942,1769699447022,-1000.0,0.00016521,2]
[403968944,1769699447031,-1000.0,0.00016521,2]
[403968946,1769699447041,-500.0,0.00016521,2]
[403968948,1769699447051,-1000.0,0.00016521,2]
[403968950,1769699447061,-504.61384517,0.00016521,2]
[403968952,1769699447071,-331.22,0.00016536,2]
[403968954,1769699447081,-1478.55,0.00016577,2]
[403968956,1769699447091,-14687.93249224,0.00016619,2]
[403968958,1769699447101,-15117.37481469,0.00016619,2]
[403968960,1769699447111,-160.44,0.00016624,2]
[403968962,1769699447120,-160.46,0.00016657,2]
[403968964,1769699447130,-980.84548067,0.00016687,2]
[403968966,1769699447139,-1478.55,0.00016851,2]
[403968968,1769699447148,-1260.36,0.00016879,2]
[403968970,1769699447158,-10000.0,0.00016899,2]
[403968972,1769699447167,-500.0,0.00016957,2]
[403968974,1769699447176,-1016.46476525,0.00016965,2]
[403968976,1769699447186,-238.89,0.00016966,2]
[403968978,1769699447195,-300.0,0.00016986,3]
[403968980,1769699447205,-250.0,0.00017,2]
[403968982,1769699447214,-337.25,0.00017041,3]
[403968984,1769699447223,-14687.93249224,0.00017046,2]
[403968986,1769699447233,-15117.37481469,0.00017046,2]